[Event "Titled Tuesday Blitz February 28 Early 2023"]
[White "Kanyamarala, Trisha"]
[Black "Mahdavi, Reza"]
[WhiteFideId "45004722"]
[BlackFideId "12595926"]
[WhiteElo "2062"]
[BlackElo "2242"]
[Result "0-1"]
[Round "01"]
[TimeControl "180+2"]
[Date "2023.02.28"]
[WhiteClock "0:00:16"]
[BlackClock "0:01:23"]

1. d4 {[%clk 0:03:00]}  Nf6 {[%clk 0:02:50]} 2. c4 {[%clk 0:02:58]}  g6 {[%clk 0:02:51]} 3. Nc3 {[%clk 0:02:58]}  Bg7 {[%clk 0:02:51]} 4. e4 {[%clk 0:02:58]}  d6 {[%clk 0:02:52]} 5. Nf3 {[%clk 0:02:57]}  O-O {[%clk 0:02:52]} 6. Be2 {[%clk 0:02:57]}  Nbd7 {[%clk 0:02:51]} 7. O-O {[%clk 0:02:56]}  e5 {[%clk 0:02:52]} 8. Bg5 {[%clk 0:02:51]}  h6 {[%clk 0:02:51]} 9. Bh4 {[%clk 0:02:49]}  b6 {[%clk 0:02:40]} 10. Nd5 {[%clk 0:02:40]}  Bb7 {[%clk 0:02:38]} 11. Nxf6+ {[%clk 0:02:35]}  Bxf6 {[%clk 0:02:35]} 12. Bxf6 {[%clk 0:02:27]}  Qxf6 {[%clk 0:02:36]} 13. d5 {[%clk 0:02:26]}  Qg7 {[%clk 0:02:30]} 14. b4 {[%clk 0:02:25]}  f5 {[%clk 0:02:29]} 15. Nd2 {[%clk 0:02:22]}  Nf6 {[%clk 0:02:28]} 16. f3 {[%clk 0:02:12]}  f4 {[%clk 0:02:26]} 17. Rb1 {[%clk 0:02:11]}  Rae8 {[%clk 0:02:25]} 18. c5 {[%clk 0:02:11]}  Bc8 {[%clk 0:02:26]} 19. Qc2 {[%clk 0:02:08]}  g5 {[%clk 0:02:26]} 20. Rfd1 {[%clk 0:02:05]}  h5 {[%clk 0:02:25]} 21. Rdc1 {[%clk 0:02:05]}  Rd8 {[%clk 0:02:19]} 22. cxd6 {[%clk 0:02:05]}  cxd6 {[%clk 0:02:20]} 23. Qc7 {[%clk 0:02:05]}  Rd7 {[%clk 0:02:19]} 24. Qc2 {[%clk 0:01:58]}  g4 {[%clk 0:02:14]} 25. Bb5 {[%clk 0:01:50]}  Rdf7 {[%clk 0:02:12]} 26. Nc4 {[%clk 0:01:38]}  Rc7 {[%clk 0:02:01]} 27. Qd2 {[%clk 0:01:35]}  Rd8 {[%clk 0:01:55]} 28. Bc6 {[%clk 0:01:13]}  gxf3 {[%clk 0:01:50]} 29. Na3 {[%clk 0:01:04]}  Nxe4 {[%clk 0:01:49]} 30. Qc2 {[%clk 0:01:00]}  Bf5 {[%clk 0:01:45]} 31. Qb2 {[%clk 0:00:54]}  Qg5 {[%clk 0:01:32]} 32. Kh1 {[%clk 0:00:48]}  Qh4 {[%clk 0:01:21]} 33. gxf3 {[%clk 0:00:20]}  Nf2+ {[%clk 0:01:21]} 34. Qxf2 {[%clk 0:00:18]}  Qxf2 {[%clk 0:01:21]} 35. Rg1+ {[%clk 0:00:17]}  Rg7 {[%clk 0:01:21]} 36. Rxg7+ {[%clk 0:00:17]}  Kxg7 {[%clk 0:01:22]} 37. Rg1+ {[%clk 0:00:16]}  Kf7 {[%clk 0:01:23]} 0-1


[Site "https://www.chess.com"]

[Event "Titled Tuesday Blitz February 28 Early 2023"]
[White "Goltsev, Dmitry"]
[Black "Coelho, Ramyres Santana"]
[WhiteFideId "24176710"]
[BlackFideId "2120690"]
[WhiteElo "2302"]
[BlackElo "1888"]
[Result "1-0"]
[Round "01"]
[TimeControl "180+2"]
[Date "2023.02.28"]
[WhiteClock "0:02:44"]
[BlackClock "0:00:33"]

1. e4 {[%clk 0:03:00]}  c5 {[%clk 0:02:55]} 2. Nf3 {[%clk 0:03:00]}  d6 {[%clk 0:02:55]} 3. d4 {[%clk 0:03:00]}  cxd4 {[%clk 0:02:56]} 4. Nxd4 {[%clk 0:03:01]}  Nf6 {[%clk 0:02:56]} 5. Nc3 {[%clk 0:03:02]}  a6 {[%clk 0:02:56]} 6. Be2 {[%clk 0:03:02]}  e6 {[%clk 0:02:56]} 7. Be3 {[%clk 0:03:03]}  Be7 {[%clk 0:02:55]} 8. O-O {[%clk 0:03:03]}  O-O {[%clk 0:02:55]} 9. f4 {[%clk 0:03:03]}  Qc7 {[%clk 0:02:50]} 10. Bf3 {[%clk 0:03:03]}  Nc6 {[%clk 0:02:46]} 11. Qd2 {[%clk 0:03:02]}  Nxd4 {[%clk 0:02:45]} 12. Bxd4 {[%clk 0:03:03]}  Rd8 {[%clk 0:02:44]} 13. Rad1 {[%clk 0:03:03]}  Bd7 {[%clk 0:02:43]} 14. e5 {[%clk 0:03:02]}  dxe5 {[%clk 0:02:29]} 15. fxe5 {[%clk 0:03:03]}  Ne8 {[%clk 0:02:22]} 16. Ne4 {[%clk 0:03:03]}  Bc6 {[%clk 0:02:12]} 17. Qf2 {[%clk 0:03:00]}  Bxe4 {[%clk 0:01:59]} 18. Bxe4 {[%clk 0:03:00]}  Bf8 {[%clk 0:01:51]} 19. Bb6 {[%clk 0:02:59]}  Rxd1 {[%clk 0:01:44]} 20. Bxc7 {[%clk 0:02:54]}  Rxf1+ {[%clk 0:01:42]} 21. Kxf1 {[%clk 0:02:53]}  Nxc7 {[%clk 0:01:41]} 22. Qb6 {[%clk 0:02:54]}  Nd5 {[%clk 0:01:36]} 23. Bxd5 {[%clk 0:02:54]}  exd5 {[%clk 0:01:37]} 24. Qxb7 {[%clk 0:02:54]}  Rd8 {[%clk 0:01:25]} 25. Qxa6 {[%clk 0:02:53]}  d4 {[%clk 0:01:19]} 26. Qc4 {[%clk 0:02:50]}  g6 {[%clk 0:01:11]} 27. a4 {[%clk 0:02:50]}  Bg7 {[%clk 0:01:11]} 28. a5 {[%clk 0:02:49]}  Bxe5 {[%clk 0:01:08]} 29. a6 {[%clk 0:02:50]}  Bb8 {[%clk 0:01:01]} 30. Qc5 {[%clk 0:02:50]}  Bxh2 {[%clk 0:00:43]} 31. a7 {[%clk 0:02:48]}  Bg3 {[%clk 0:00:37]} 32. Qd5 {[%clk 0:02:44]}  Re8 {[%clk 0:00:33]} 33. a8=Q {[%clk 0:02:44]} 1-0


[Site "https://www.chess.com"]

[Event "Titled Tuesday Blitz February 28 Early 2023"]
[White "Vaglio Munoz, Jaime"]
[Black "Msellek, Ilyass"]
[WhiteFideId "6500145"]
[BlackFideId "675938"]
[WhiteElo "2199"]
[BlackElo "2303"]
[Result "0-1"]
[Round "01"]
[TimeControl "180+2"]
[Date "2023.02.28"]
[WhiteClock "0:00:50"]
[BlackClock "0:00:26"]

1. d4 {[%clk 0:02:57]}  d5 {[%clk 0:02:57]} 2. g3 {[%clk 0:02:51]}  c6 {[%clk 0:02:58]} 3. Bg2 {[%clk 0:02:51]}  Nf6 {[%clk 0:02:54]} 4. c3 {[%clk 0:02:51]}  Bf5 {[%clk 0:02:55]} 5. Bf4 {[%clk 0:02:50]}  e6 {[%clk 0:02:54]} 6. Nd2 {[%clk 0:02:50]}  Nbd7 {[%clk 0:02:53]} 7. Ngf3 {[%clk 0:02:49]}  h6 {[%clk 0:02:53]} 8. h4 {[%clk 0:02:48]}  a5 {[%clk 0:02:49]} 9. a4 {[%clk 0:02:47]}  Be7 {[%clk 0:02:43]} 10. O-O {[%clk 0:02:42]}  Ng4 {[%clk 0:02:39]} 11. Ne5 {[%clk 0:02:38]}  Ndxe5 {[%clk 0:02:37]} 12. Bxe5 {[%clk 0:02:35]}  f6 {[%clk 0:02:36]} 13. Bf4 {[%clk 0:02:35]}  g5 {[%clk 0:02:35]} 14. Be3 {[%clk 0:02:24]}  Nxe3 {[%clk 0:02:33]} 15. fxe3 {[%clk 0:02:25]}  Qc7 {[%clk 0:02:30]} 16. Qe1 {[%clk 0:02:22]}  Bd6 {[%clk 0:02:29]} 17. Rf3 {[%clk 0:02:18]}  Rg8 {[%clk 0:02:26]} 18. Kh1 {[%clk 0:02:17]}  O-O-O {[%clk 0:02:17]} 19. b4 {[%clk 0:02:01]}  gxh4 {[%clk 0:02:04]} 20. gxh4 {[%clk 0:02:00]}  Rd7 {[%clk 0:01:59]} 21. Qf2 {[%clk 0:01:59]}  Rdg7 {[%clk 0:01:57]} 22. Rg1 {[%clk 0:01:56]}  Bg3 {[%clk 0:01:57]} 23. Qf1 {[%clk 0:01:55]}  Bxh4 {[%clk 0:01:57]} 24. Rxf5 {[%clk 0:01:53]}  exf5 {[%clk 0:01:54]} 25. Qxf5+ {[%clk 0:01:54]}  Kb8 {[%clk 0:01:54]} 26. b5 {[%clk 0:01:54]}  Rg5 {[%clk 0:01:51]} 27. Qf4 {[%clk 0:01:49]}  Rh5 {[%clk 0:01:41]} 28. Bf3 {[%clk 0:01:47]}  Rxg1+ {[%clk 0:01:36]} 29. Kxg1 {[%clk 0:01:46]}  Rg5+ {[%clk 0:01:30]} 30. Kf1 {[%clk 0:01:43]}  Bg3 {[%clk 0:01:23]} 31. Qxf6 {[%clk 0:01:35]}  Bh2 {[%clk 0:01:20]} 32. Ke1 {[%clk 0:01:32]}  Rg1+ {[%clk 0:01:17]} 33. Nf1 {[%clk 0:01:31]}  Bg3+ {[%clk 0:01:18]} 34. Kd2 {[%clk 0:01:29]}  Rxf1 {[%clk 0:01:18]} 35. Qxh6 {[%clk 0:01:27]}  Ka7 {[%clk 0:01:12]} 36. Qf8 {[%clk 0:01:25]}  Bd6 {[%clk 0:01:11]} 37. Qg8 {[%clk 0:01:20]}  cxb5 {[%clk 0:01:00]} 38. Qxd5 {[%clk 0:01:19]}  b4 {[%clk 0:00:59]} 39. c4 {[%clk 0:01:17]}  b3 {[%clk 0:00:53]} 40. c5 {[%clk 0:01:17]}  b2 {[%clk 0:00:53]} 41. Be4 {[%clk 0:01:14]}  Bxc5 {[%clk 0:00:40]} 42. dxc5 {[%clk 0:01:09]}  b1=Q {[%clk 0:00:38]} 43. Bxb1 {[%clk 0:01:08]}  Rxb1 {[%clk 0:00:39]} 44. e4 {[%clk 0:01:05]}  Rh1 {[%clk 0:00:29]} 45. Kd3 {[%clk 0:00:51]}  Rh8 {[%clk 0:00:26]} 46. e5 {[%clk 0:00:50]}  Rd8 {[%clk 0:00:27]} 47. e4 {[%clk 0:00:49]}  Rxd5+ {[%clk 0:00:27]} 48. exd5 {[%clk 0:00:50]}  Qxe5 {[%clk 0:00:26]} 49. Kc4 {[%clk 0:00:50]}  Qe4+ {[%clk 0:00:26]} 50. Kc3 {[%clk 0:00:50]}  Qxd5 {[%clk 0:00:26]} 51. c6 {[%clk 0:00:50]}  Qc5+ {[%clk 0:00:26]} 0-1


[Site "https://www.chess.com"]

[Event "Titled Tuesday Blitz February 28 Early 2023"]
[White "Wagner, Dennis"]
[Black "Avazkhonov, Alikhon"]
[WhiteFideId "24650684"]
[BlackFideId "14208504"]
[WhiteElo "2470"]
[BlackElo "1739"]
[Result "0-1"]
[Round "01"]
[TimeControl "180+2"]
[Date "2023.02.28"]
[WhiteClock "0:00:04"]
[BlackClock "0:00:04"]

1. d4 {[%clk 0:03:00]}  Nf6 {[%clk 0:02:53]} 2. Nf3 {[%clk 0:03:00]}  g6 {[%clk 0:02:53]} 3. c4 {[%clk 0:03:00]}  Bg7 {[%clk 0:02:54]} 4. Nc3 {[%clk 0:03:01]}  O-O {[%clk 0:02:55]} 5. e4 {[%clk 0:03:01]}  d6 {[%clk 0:02:55]} 6. Be2 {[%clk 0:03:01]}  e5 {[%clk 0:02:50]} 7. O-O {[%clk 0:03:02]}  Nbd7 {[%clk 0:02:50]} 8. Be3 {[%clk 0:03:01]}  Qe7 {[%clk 0:02:35]} 9. Qc2 {[%clk 0:03:00]}  Re8 {[%clk 0:02:29]} 10. d5 {[%clk 0:02:57]}  c5 {[%clk 0:02:29]} 11. h3 {[%clk 0:02:47]}  h6 {[%clk 0:02:17]} 12. a3 {[%clk 0:02:46]}  b6 {[%clk 0:02:08]} 13. g4 {[%clk 0:02:34]}  Nh7 {[%clk 0:01:41]} 14. Kh1 {[%clk 0:02:29]}  Kh8 {[%clk 0:01:32]} 15. Rg1 {[%clk 0:02:24]}  Rf8 {[%clk 0:01:18]} 16. Qd2 {[%clk 0:02:23]}  f5 {[%clk 0:00:45]} 17. gxf5 {[%clk 0:02:21]}  gxf5 {[%clk 0:00:45]} 18. Bxh6 {[%clk 0:02:13]}  Bxh6 {[%clk 0:00:39]} 19. Qxh6 {[%clk 0:02:14]}  Nf6 {[%clk 0:00:39]} 20. Ng5 {[%clk 0:02:04]}  Bd7 {[%clk 0:00:32]} 21. Rg2 {[%clk 0:01:58]}  Nxe4 {[%clk 0:00:19]} 22. Ncxe4 {[%clk 0:01:55]}  fxe4 {[%clk 0:00:20]} 23. Nxe4 {[%clk 0:01:44]}  Rf4 {[%clk 0:00:20]} 24. Rag1 {[%clk 0:01:32]}  Rh4 {[%clk 0:00:17]} 25. Nf6 {[%clk 0:00:12]}  Qxf6 {[%clk 0:00:08]} 26. Qxf6+ {[%clk 0:00:12]}  Nxf6 {[%clk 0:00:09]} 27. Rg3 {[%clk 0:00:10]}  Rg8 {[%clk 0:00:06]} 28. Rxg8+ {[%clk 0:00:10]}  Nxg8 {[%clk 0:00:07]} 29. Kg2 {[%clk 0:00:08]}  Bxh3+ {[%clk 0:00:05]} 30. Kg3 {[%clk 0:00:08]}  Rh6 {[%clk 0:00:06]} 31. Rh1 {[%clk 0:00:08]}  Bd7 {[%clk 0:00:06]} 32. Rd1 {[%clk 0:00:08]}  Kg7 {[%clk 0:00:06]} 33. f3 {[%clk 0:00:07]}  Nf6 {[%clk 0:00:07]} 34. b4 {[%clk 0:00:07]}  Nh5+ {[%clk 0:00:07]} 35. Kf2 {[%clk 0:00:07]}  Nf4 {[%clk 0:00:08]} 36. Ke3 {[%clk 0:00:07]}  Rh2 {[%clk 0:00:08]} 37. Rg1+ {[%clk 0:00:07]}  Kf6 {[%clk 0:00:08]} 38. Bd3 {[%clk 0:00:07]}  Bf5 {[%clk 0:00:06]} 39. Bf1 {[%clk 0:00:05]}  Bh3 {[%clk 0:00:05]} 40. Bd3 {[%clk 0:00:04]}  Nxd3 {[%clk 0:00:03]} 41. Kxd3 {[%clk 0:00:05]}  Ra2 {[%clk 0:00:04]} 42. bxc5 {[%clk 0:00:04]}  Rxa3+ {[%clk 0:00:03]} 43. Ke2 {[%clk 0:00:05]}  bxc5 {[%clk 0:00:04]} 44. Rh1 {[%clk 0:00:05]}  Bf5 {[%clk 0:00:04]} 45. Rh6+ {[%clk 0:00:05]}  Bg6 {[%clk 0:00:04]} 46. Rh8 {[%clk 0:00:06]}  Ra2+ {[%clk 0:00:04]} 47. Ke3 {[%clk 0:00:06]}  Ra3+ {[%clk 0:00:04]} 48. Kf2 {[%clk 0:00:07]}  Rc3 {[%clk 0:00:05]} 49. Rf8+ {[%clk 0:00:06]}  Ke7 {[%clk 0:00:05]} 50. Ra8 {[%clk 0:00:07]}  Rxc4 {[%clk 0:00:05]} 51. Rxa7+ {[%clk 0:00:08]}  Kf6 {[%clk 0:00:05]} 52. Rd7 {[%clk 0:00:08]}  Rd4 {[%clk 0:00:04]} 53. Rxd6+ {[%clk 0:00:08]}  Kg5 {[%clk 0:00:04]} 54. Ke3 {[%clk 0:00:08]}  e4 {[%clk 0:00:03]} 55. fxe4 {[%clk 0:00:06]}  Bxe4 {[%clk 0:00:03]} 56. Re6 {[%clk 0:00:06]}  Bxd5 {[%clk 0:00:04]} 57. Rd6 {[%clk 0:00:06]}  Kf5 {[%clk 0:00:04]} 58. Rd8 {[%clk 0:00:06]}  Ke5 {[%clk 0:00:04]} 59. Re8+ {[%clk 0:00:06]}  Be6 {[%clk 0:00:04]} 60. Re7 {[%clk 0:00:06]}  Re4+ {[%clk 0:00:04]} 61. Kd3 {[%clk 0:00:06]}  Rd4+ {[%clk 0:00:04]} 62. Kc3 {[%clk 0:00:06]}  Rh4 {[%clk 0:00:04]} 63. Rc7 {[%clk 0:00:05]}  Rh3+ {[%clk 0:00:05]} 64. Kc2 {[%clk 0:00:05]}  c4 {[%clk 0:00:06]} 65. Rc6 {[%clk 0:00:04]}  Bf5+ {[%clk 0:00:06]} 66. Kb2 {[%clk 0:00:03]}  Kd4 {[%clk 0:00:06]} 67. Rd6+ {[%clk 0:00:03]}  Kc5 {[%clk 0:00:06]} 68. Rd8 {[%clk 0:00:03]}  c3+ {[%clk 0:00:05]} 69. Kb3 {[%clk 0:00:04]}  c2+ {[%clk 0:00:06]} 70. Kb2 {[%clk 0:00:04]}  Rb3+ {[%clk 0:00:05]} 71. Kxb3 {[%clk 0:00:04]}  c1=Q {[%clk 0:00:06]} 72. Rc8+ {[%clk 0:00:04]}  Bxc8 {[%clk 0:00:04]} 0-1


[Site "https://www.chess.com"]

[Event "Titled Tuesday Blitz February 28 Early 2023"]
[White "Carrasco Miranda, Andres"]
[Black "Aradhya, Garg"]
[WhiteFideId "3405990"]
[BlackFideId "25006746"]
[WhiteElo "2183"]
[BlackElo "2278"]
[Result "0-1"]
[Round "01"]
[TimeControl "180+2"]
[Date "2023.02.28"]
[WhiteClock "0:00:17"]
[BlackClock "0:00:13"]

1. d4 {[%clk 0:02:55]}  d5 {[%clk 0:02:59]} 2. c4 {[%clk 0:02:54]}  c6 {[%clk 0:02:59]} 3. Nf3 {[%clk 0:02:51]}  Nf6 {[%clk 0:02:59]} 4. e3 {[%clk 0:02:50]}  Bf5 {[%clk 0:02:58]} 5. Nc3 {[%clk 0:02:50]}  e6 {[%clk 0:02:59]} 6. Nh4 {[%clk 0:02:49]}  Be4 {[%clk 0:02:58]} 7. f3 {[%clk 0:02:49]}  Bg6 {[%clk 0:02:59]} 8. Qb3 {[%clk 0:02:49]}  Qc7 {[%clk 0:02:59]} 9. Bd2 {[%clk 0:02:44]}  a5 {[%clk 0:02:58]} 10. Nxg6 {[%clk 0:02:42]}  hxg6 {[%clk 0:02:58]} 11. Bd3 {[%clk 0:02:43]}  a4 {[%clk 0:02:38]} 12. Nxa4 {[%clk 0:02:42]}  dxc4 {[%clk 0:02:38]} 13. Bxc4 {[%clk 0:01:39]}  b5 {[%clk 0:02:37]} 14. Bxb5 {[%clk 0:01:33]}  cxb5 {[%clk 0:02:38]} 15. Qxb5+ {[%clk 0:01:34]}  Qd7 {[%clk 0:02:22]} 16. Qxd7+ {[%clk 0:01:28]}  Nbxd7 {[%clk 0:02:23]} 17. Nc3 {[%clk 0:01:29]}  Nb6 {[%clk 0:01:55]} 18. b3 {[%clk 0:01:26]}  Kd7 {[%clk 0:01:52]} 19. e4 {[%clk 0:01:26]}  Ba3 {[%clk 0:01:48]} 20. Rb1 {[%clk 0:01:10]}  Rhc8 {[%clk 0:01:47]} 21. Ke2 {[%clk 0:01:08]}  Ne8 {[%clk 0:01:02]} 22. Kd3 {[%clk 0:01:04]}  Nd6 {[%clk 0:01:01]} 23. g4 {[%clk 0:01:02]}  Rc7 {[%clk 0:00:54]} 24. h4 {[%clk 0:00:49]}  f6 {[%clk 0:00:38]} 25. h5 {[%clk 0:00:48]}  gxh5 {[%clk 0:00:37]} 26. Rxh5 {[%clk 0:00:48]}  Bb4 {[%clk 0:00:27]} 27. a4 {[%clk 0:00:44]}  Rac8 {[%clk 0:00:25]} 28. Rc1 {[%clk 0:00:21]}  Bxc3 {[%clk 0:00:19]} 29. Rxc3 {[%clk 0:00:21]}  Rxc3+ {[%clk 0:00:18]} 30. Bxc3 {[%clk 0:00:22]}  Ke7 {[%clk 0:00:19]} 31. Bb4 {[%clk 0:00:19]}  Kd7 {[%clk 0:00:13]} 32. Rh7 {[%clk 0:00:19]}  Ne8 {[%clk 0:00:12]} 33. a5 {[%clk 0:00:18]}  Na8 {[%clk 0:00:12]} 34. f4 {[%clk 0:00:15]}  Kc6 {[%clk 0:00:12]} 35. Rh5 {[%clk 0:00:15]}  Nac7 {[%clk 0:00:10]} 36. g5 {[%clk 0:00:15]}  Rb8 {[%clk 0:00:10]} 37. Kc3 {[%clk 0:00:14]}  Nb5+ {[%clk 0:00:10]} 38. Kc4 {[%clk 0:00:14]}  Nxd4 {[%clk 0:00:10]} 39. a6 {[%clk 0:00:13]}  Nb5 {[%clk 0:00:08]} 40. gxf6 {[%clk 0:00:12]}  Ned6+ {[%clk 0:00:09]} 41. Kd3 {[%clk 0:00:11]}  gxf6 {[%clk 0:00:09]} 42. Bd2 {[%clk 0:00:10]}  Ra8 {[%clk 0:00:08]} 43. e5 {[%clk 0:00:09]}  fxe5 {[%clk 0:00:08]} 44. fxe5 {[%clk 0:00:10]}  Nf5 {[%clk 0:00:09]} 45. Rh7 {[%clk 0:00:09]}  Rxa6 {[%clk 0:00:09]} 46. Kc4 {[%clk 0:00:09]}  Na3+ {[%clk 0:00:08]} 47. Kc3 {[%clk 0:00:10]}  Nb5+ {[%clk 0:00:09]} 48. Kb4 {[%clk 0:00:10]}  Nbd4 {[%clk 0:00:09]} 49. Bc3 {[%clk 0:00:09]}  Kd5 {[%clk 0:00:08]} 50. Rd7+ {[%clk 0:00:09]}  Kxe5 {[%clk 0:00:08]} 51. Rb7 {[%clk 0:00:08]}  Ke4 {[%clk 0:00:08]} 52. Kc4 {[%clk 0:00:08]}  Rc6+ {[%clk 0:00:08]} 53. Kb4 {[%clk 0:00:08]}  Nc2+ {[%clk 0:00:08]} 54. Kb5 {[%clk 0:00:06]}  Rxc3 {[%clk 0:00:09]} 55. b4 {[%clk 0:00:07]}  Nd6+ {[%clk 0:00:09]} 56. Ka6 {[%clk 0:00:06]}  Nxb7 {[%clk 0:00:09]} 57. b5 {[%clk 0:00:07]}  Nb4+ {[%clk 0:00:10]} 58. Kb6 {[%clk 0:00:08]}  Nd5+ {[%clk 0:00:09]} 59. Ka7 {[%clk 0:00:08]}  Rb3 {[%clk 0:00:09]} 60. b6 {[%clk 0:00:09]}  Rxb6 {[%clk 0:00:09]} 61. Kb8 {[%clk 0:00:10]}  Nd6+ {[%clk 0:00:09]} 62. Ka7 {[%clk 0:00:11]}  Rc6 {[%clk 0:00:09]} 63. Kb8 {[%clk 0:00:10]}  Rc7 {[%clk 0:00:09]} 64. Ka8 {[%clk 0:00:10]}  Kd4 {[%clk 0:00:10]} 65. Kb8 {[%clk 0:00:11]}  e5 {[%clk 0:00:11]} 66. Ka8 {[%clk 0:00:12]}  e4 {[%clk 0:00:11]} 67. Kb8 {[%clk 0:00:13]}  e3 {[%clk 0:00:12]} 68. Ka8 {[%clk 0:00:14]}  e2 {[%clk 0:00:12]} 69. Kb8 {[%clk 0:00:15]}  e1=Q {[%clk 0:00:13]} 70. Ka8 {[%clk 0:00:16]}  Qa5+ {[%clk 0:00:12]} 71. Kb8 {[%clk 0:00:17]}  Qa7# {[%clk 0:00:13]} 0-1


[Site "https://www.chess.com"]

[Event "Titled Tuesday Blitz February 28 Early 2023"]
[White "Hasangatin, Ramil"]
[Black "Toktomushev, Teimur"]
[WhiteFideId "4122160"]
[BlackFideId "14176726"]
[WhiteElo "2310"]
[BlackElo "2106"]
[Result "0-1"]
[Round "01"]
[TimeControl "180+2"]
[Date "2023.02.28"]
[WhiteClock "0:01:05"]
[BlackClock "0:00:02"]

1. e4 {[%clk 0:02:59]}  c5 {[%clk 0:03:00]} 2. Nf3 {[%clk 0:02:59]}  e6 {[%clk 0:03:00]} 3. g3 {[%clk 0:02:59]}  Nc6 {[%clk 0:02:59]} 4. Bg2 {[%clk 0:02:59]}  d5 {[%clk 0:03:00]} 5. exd5 {[%clk 0:02:58]}  exd5 {[%clk 0:03:01]} 6. d4 {[%clk 0:02:59]}  Nf6 {[%clk 0:02:59]} 7. O-O {[%clk 0:02:59]}  Be7 {[%clk 0:02:58]} 8. Be3 {[%clk 0:02:58]}  O-O {[%clk 0:02:46]} 9. dxc5 {[%clk 0:02:57]}  Ne4 {[%clk 0:02:03]} 10. Nc3 {[%clk 0:02:55]}  Nxc3 {[%clk 0:01:53]} 11. bxc3 {[%clk 0:02:56]}  Qa5 {[%clk 0:01:41]} 12. Nd4 {[%clk 0:02:50]}  Qxc3 {[%clk 0:01:16]} 13. Nb3 {[%clk 0:02:42]}  Be6 {[%clk 0:01:11]} 14. Qd3 {[%clk 0:02:40]}  Qf6 {[%clk 0:00:59]} 15. Rfe1 {[%clk 0:02:30]}  Rad8 {[%clk 0:00:51]} 16. Bf4 {[%clk 0:02:14]}  Rfe8 {[%clk 0:00:44]} 17. h4 {[%clk 0:02:10]}  h6 {[%clk 0:00:34]} 18. Qb5 {[%clk 0:02:10]}  Rd7 {[%clk 0:00:29]} 19. Rad1 {[%clk 0:02:09]}  a6 {[%clk 0:00:27]} 20. Qa4 {[%clk 0:02:08]}  Rc8 {[%clk 0:00:16]} 21. Rd2 {[%clk 0:01:53]}  d4 {[%clk 0:00:16]} 22. Red1 {[%clk 0:01:47]}  Bxb3 {[%clk 0:00:13]} 23. cxb3 {[%clk 0:01:39]}  Bxc5 {[%clk 0:00:13]} 24. Rc1 {[%clk 0:01:39]}  Ba7 {[%clk 0:00:10]} 25. Rdc2 {[%clk 0:01:34]}  d3 {[%clk 0:00:09]} 26. Rd2 {[%clk 0:01:34]}  Rcd8 {[%clk 0:00:08]} 27. Bxc6 {[%clk 0:01:29]}  bxc6 {[%clk 0:00:09]} 28. Qxc6 {[%clk 0:01:28]}  Qd4 {[%clk 0:00:03]} 29. Be3 {[%clk 0:01:26]}  Qb4 {[%clk 0:00:01]} 30. Qc3 {[%clk 0:01:22]}  Qxc3 {[%clk 0:00:01]} 31. Rxc3 {[%clk 0:01:23]}  Bxe3 {[%clk 0:00:02]} 32. fxe3 {[%clk 0:01:23]}  f5 {[%clk 0:00:01]} 33. h5 {[%clk 0:01:21]}  Rd6 {[%clk 0:00:02]} 34. Kf2 {[%clk 0:01:21]}  Kf7 {[%clk 0:00:03]} 35. Kf3 {[%clk 0:01:19]}  Ke6 {[%clk 0:00:03]} 36. Kf4 {[%clk 0:01:19]}  Rd5 {[%clk 0:00:02]} 37. Rc6+ {[%clk 0:01:19]}  R5d6 {[%clk 0:00:02]} 38. Rxd3 {[%clk 0:01:14]}  Rxc6 {[%clk 0:00:02]} 39. Rxd8 {[%clk 0:01:15]}  Rc2 {[%clk 0:00:03]} 40. a3 {[%clk 0:01:05]}  Rf2# {[%clk 0:00:02]} 0-1


[Site "https://www.chess.com"]

[Event "Titled Tuesday Blitz February 28 Early 2023"]
[White "Costachi, Mihnea"]
[Black "Melaugh, Shane"]
[WhiteFideId "1217518"]
[BlackFideId "2509580"]
[WhiteElo "2456"]
[BlackElo "2034"]
[Result "1-0"]
[Round "01"]
[TimeControl "180+2"]
[Date "2023.02.28"]
[WhiteClock "0:00:39"]
[BlackClock "0:00:05"]

1. d4 {[%clk 0:02:59]}  e6 {[%clk 0:02:59]} 2. c4 {[%clk 0:02:59]}  f5 {[%clk 0:02:59]} 3. g3 {[%clk 0:02:59]}  Nf6 {[%clk 0:03:00]} 4. Bg2 {[%clk 0:02:59]}  Be7 {[%clk 0:02:55]} 5. Nf3 {[%clk 0:02:58]}  O-O {[%clk 0:02:54]} 6. O-O {[%clk 0:02:59]}  d6 {[%clk 0:02:54]} 7. Nc3 {[%clk 0:02:59]}  Nc6 {[%clk 0:02:55]} 8. b3 {[%clk 0:02:57]}  e5 {[%clk 0:02:54]} 9. d5 {[%clk 0:02:50]}  Na5 {[%clk 0:02:46]} 10. e4 {[%clk 0:02:42]}  b6 {[%clk 0:02:37]} 11. Ng5 {[%clk 0:02:35]}  Nxe4 {[%clk 0:02:29]} 12. Ncxe4 {[%clk 0:02:30]}  fxe4 {[%clk 0:02:27]} 13. Nxh7 {[%clk 0:01:49]}  Rf3 {[%clk 0:01:47]} 14. Qc2 {[%clk 0:01:27]}  Rf7 {[%clk 0:00:13]} 15. Bxe4 {[%clk 0:01:22]}  Bh3 {[%clk 0:00:13]} 16. Re1 {[%clk 0:01:13]}  Nb7 {[%clk 0:00:13]} 17. f4 {[%clk 0:01:11]}  exf4 {[%clk 0:00:09]} 18. Bxf4 {[%clk 0:01:09]}  Bf6 {[%clk 0:00:05]} 19. Bg6 {[%clk 0:00:59]}  Rd7 {[%clk 0:00:05]} 20. Re8+ {[%clk 0:00:44]}  Qxe8 {[%clk 0:00:05]} 21. Nxf6+ {[%clk 0:00:42]}  gxf6 {[%clk 0:00:04]} 22. Bxe8 {[%clk 0:00:43]}  Rxe8 {[%clk 0:00:05]} 23. Qg6+ {[%clk 0:00:42]}  Kf8 {[%clk 0:00:04]} 24. Bh6+ {[%clk 0:00:38]}  Ke7 {[%clk 0:00:05]} 25. Re1+ {[%clk 0:00:39]} 1-0


[Site "https://www.chess.com"]